[Event "*** Titled Tuesday Blitz"]
[Site "Chess.com"]
[Date "2019.12.03"]
[Round "2"]
[White "ChessWarrior7197"]
[Black "Region_07"]
[Result "1/2-1/2"]
[WhiteElo "2924"]
[BlackElo "2375"]
[TimeControl "180+2"]
[EndTime "13:18:48 PST"]
[Termination "Game drawn by repetition"]

1. e4 {[%clk 0:03:01.9]} 1... Nc6 {[%clk 0:02:53.6]} 2. d4 {[%clk 0:03:01.9]}
2... d5 {[%clk 0:02:53.8]} 3. e5 {[%clk 0:02:59.9]} 3... f6 {[%clk 0:02:51.6]}
4. f4 {[%clk 0:02:55.8]} 4... Bf5 {[%clk 0:02:52.3]} 5. c3 {[%clk 0:02:54]} 5...
e6 {[%clk 0:02:53]} 6. Nf3 {[%clk 0:02:48.8]} 6... Be7 {[%clk 0:02:47.1]} 7. Bd3
{[%clk 0:02:49.4]} 7... Nh6 {[%clk 0:02:43.4]} 8. O-O {[%clk 0:02:50]} 8... O-O
{[%clk 0:02:43.5]} 9. a4 {[%clk 0:02:50.4]} 9... Qe8 {[%clk 0:02:41.4]} 10. Bxf5
{[%clk 0:02:47]} 10... Nxf5 {[%clk 0:02:41.9]} 11. Qd3 {[%clk 0:02:47.9]} 11...
fxe5 {[%clk 0:02:39]} 12. fxe5 {[%clk 0:02:48.4]} 12... Qg6 {[%clk 0:02:39.9]}
13. Na3 {[%clk 0:02:48.4]} 13... Nfxd4 {[%clk 0:02:40.4]} 14. Qxg6 {[%clk
0:02:34.4]} 14... Nxf3+ {[%clk 0:02:40.5]} 15. Rxf3 {[%clk 0:02:35.4]} 15...
hxg6 {[%clk 0:02:41.6]} 16. Rxf8+ {[%clk 0:02:31]} 16... Rxf8 {[%clk 0:02:39.4]}
17. Nb5 {[%clk 0:02:29.9]} 17... Bd8 {[%clk 0:02:32.9]} 18. Be3 {[%clk
0:02:28.3]} 18... a6 {[%clk 0:02:26.5]} 19. Nd4 {[%clk 0:02:27]} 19... Nxd4
{[%clk 0:02:23.7]} 20. Bxd4 {[%clk 0:02:25.8]} 20... c6 {[%clk 0:02:18.3]} 21.
b4 {[%clk 0:02:26]} 21... Be7 {[%clk 0:02:10.4]} 22. Rb1 {[%clk 0:02:26.4]}
22... Rc8 {[%clk 0:02:06.1]} 23. Kf2 {[%clk 0:02:25.2]} 23... Kf7 {[%clk
0:02:03.3]} 24. Ke3 {[%clk 0:02:25.8]} 24... Rb8 {[%clk 0:02:02.1]} 25. a5
{[%clk 0:02:23.3]} 25... Rf8 {[%clk 0:01:57.8]} 26. Ke2 {[%clk 0:02:17.2]} 26...
Kg8 {[%clk 0:01:53]} 27. g3 {[%clk 0:02:13.9]} 27... Rf5 {[%clk 0:01:50.5]} 28.
g4 {[%clk 0:02:10.5]} 28... Rf4 {[%clk 0:01:50]} 29. h3 {[%clk 0:02:11]} 29...
Bd8 {[%clk 0:01:39.1]} 30. Rf1 {[%clk 0:01:51]} 30... Rxf1 {[%clk 0:01:39.2]}
31. Kxf1 {[%clk 0:01:52.1]} 31... Kf7 {[%clk 0:01:38.6]} 32. Ke2 {[%clk
0:01:53.3]} 32... Bc7 {[%clk 0:01:38.7]} 33. Kd3 {[%clk 0:01:52.9]} 33... Ke7
{[%clk 0:01:38.7]} 34. Bc5+ {[%clk 0:01:50.2]} 34... Kd7 {[%clk 0:01:39.9]} 35.
Kd4 {[%clk 0:01:50.9]} 35... Ke8 {[%clk 0:01:33.1]} 36. Ba7 {[%clk 0:01:50.7]}
36... Kd7 {[%clk 0:01:32.4]} 37. Bc5 {[%clk 0:01:51.5]} 37... Ke8 {[%clk
0:01:31.8]} 38. Ba7 {[%clk 0:01:52.5]} 38... Kd7 {[%clk 0:01:32.6]} 39. Bc5
{[%clk 0:01:53]} 1/2-1/2

[Event "*** Titled Tuesday Blitz"]
[Site "Chess.com"]
[Date "2019.12.03"]
[Round "2"]
[White "jmduque"]
[Black "Kawhi_Leonard2"]
[Result "0-1"]
[WhiteElo "2479"]
[BlackElo "2294"]
[TimeControl "180+2"]
[EndTime "13:18:50 PST"]
[Termination "Kawhi_Leonard2 won by resignation"]

1. e4 {[%clk 0:02:20.1]} 1... c5 {[%clk 0:03:00.3]} 2. Nf3 {[%clk 0:02:20.7]}
2... d6 {[%clk 0:03:01.8]} 3. d4 {[%clk 0:02:21.6]} 3... cxd4 {[%clk 0:03:03.4]}
4. Nxd4 {[%clk 0:02:23]} 4... Nf6 {[%clk 0:03:05.1]} 5. Nc3 {[%clk 0:02:24.1]}
5... g6 {[%clk 0:03:06.8]} 6. Be3 {[%clk 0:02:24.5]} 6... Bg7 {[%clk 0:03:08.2]}
7. f3 {[%clk 0:02:25.9]} 7... O-O {[%clk 0:03:09.2]} 8. Qd2 {[%clk 0:02:27.8]}
8... Nc6 {[%clk 0:03:10.5]} 9. O-O-O {[%clk 0:02:29.7]} 9... d5 {[%clk
0:03:11.9]} 10. exd5 {[%clk 0:02:31.4]} 10... Nxd5 {[%clk 0:03:12.2]} 11. Nxc6
{[%clk 0:02:32.7]} 11... bxc6 {[%clk 0:03:13.3]} 12. Bd4 {[%clk 0:02:34.4]}
12... Bxd4 {[%clk 0:03:14.1]} 13. Qxd4 {[%clk 0:02:36.3]} 13... Qb6 {[%clk
0:03:15.4]} 14. Na4 {[%clk 0:02:35]} 14... Qc7 {[%clk 0:03:16.3]} 15. Nc5 {[%clk
0:02:33.9]} 15... Rd8 {[%clk 0:03:16.4]} 16. Bc4 {[%clk 0:02:34]} 16... Rd6
{[%clk 0:03:15.7]} 17. Ne4 {[%clk 0:02:33.7]} 17... Rd8 {[%clk 0:03:11]} 18. Bb3
{[%clk 0:02:33.9]} 18... Bf5 {[%clk 0:03:06.9]} 19. g4 {[%clk 0:02:28.5]} 19...
Bxe4 {[%clk 0:03:03.8]} 20. Qxe4 {[%clk 0:02:29.5]} 20... Qf4+ {[%clk
0:02:59.5]} 21. Qxf4 {[%clk 0:02:29]} 21... Nxf4 {[%clk 0:03:00.6]} 22. Rhe1
{[%clk 0:02:30.2]} 22... e6 {[%clk 0:02:58.6]} 23. Bc4 {[%clk 0:02:28.9]} 23...
Kg7 {[%clk 0:02:45.9]} 24. c3 {[%clk 0:02:29.3]} 24... g5 {[%clk 0:02:43.1]} 25.
Kc2 {[%clk 0:02:29.5]} 25... Kf6 {[%clk 0:02:43.1]} 26. b4 {[%clk 0:02:29.3]}
26... h5 {[%clk 0:02:40.7]} 27. a4 {[%clk 0:02:29]} 27... hxg4 {[%clk
0:02:39.8]} 28. fxg4 {[%clk 0:02:30.9]} 28... Rxd1 {[%clk 0:02:34.6]} 29. Rxd1
{[%clk 0:02:32.3]} 29... Rh8 {[%clk 0:02:35.6]} 30. Rd2 {[%clk 0:02:33.4]} 30...
Rh4 {[%clk 0:02:36]} 31. a5 {[%clk 0:02:31.6]} 31... Rxg4 {[%clk 0:02:35.2]} 32.
Rd7 {[%clk 0:02:28.4]} 32... Rg2+ {[%clk 0:02:22.6]} 33. Kb3 {[%clk 0:02:29.3]}
33... Rxh2 {[%clk 0:02:22.3]} 34. a6 {[%clk 0:02:27]} 34... g4 {[%clk
0:02:22.5]} 35. Rxa7 {[%clk 0:02:25.9]} 35... g3 {[%clk 0:02:23.9]} 36. Bf1
{[%clk 0:02:13.5]} 36... Rf2 {[%clk 0:02:08.3]} 37. Ra8 {[%clk 0:01:29.4]} 37...
Rxf1 {[%clk 0:02:06.8]} 38. Rg8 {[%clk 0:01:29.3]} 38... g2 {[%clk 0:02:06.2]}
39. a7 {[%clk 0:01:28.5]} 39... Ra1 {[%clk 0:02:06.6]} 40. Rg4 {[%clk
0:01:27.5]} 0-1

[Event "*** Titled Tuesday Blitz"]
[Site "Chess.com"]
[Date "2019.12.03"]
[Round "2"]
[White "raswi"]
[Black "GoldenShare"]
[Result "0-1"]
[WhiteElo "2231"]
[BlackElo "2458"]
[TimeControl "180+2"]
[EndTime "13:19:02 PST"]
[Termination "GoldenShare won by resignation"]

1. e4 {[%clk 0:03:01.9]} 1... e6 {[%clk 0:03:00.7]} 2. d4 {[%clk 0:03:02.3]}
2... d5 {[%clk 0:03:01.9]} 3. Nc3 {[%clk 0:03:03.5]} 3... Nc6 {[%clk 0:03:02.8]}
4. Nf3 {[%clk 0:02:47.1]} 4... Nf6 {[%clk 0:03:02.3]} 5. e5 {[%clk 0:02:31.6]}
5... Ne4 {[%clk 0:03:03.3]} 6. Bd3 {[%clk 0:02:31]} 6... Bb4 {[%clk 0:03:04.3]}
7. Bd2 {[%clk 0:02:29.3]} 7... Nxd2 {[%clk 0:03:05.6]} 8. Qxd2 {[%clk
0:02:30.6]} 8... f6 {[%clk 0:03:07.2]} 9. a3 {[%clk 0:02:28.9]} 9... Bxc3 {[%clk
0:03:07.4]} 10. Qxc3 {[%clk 0:02:30.4]} 10... fxe5 {[%clk 0:03:05.8]} 11. dxe5
{[%clk 0:02:23.6]} 11... O-O {[%clk 0:03:06.4]} 12. Qd2 {[%clk 0:02:04.5]} 12...
Bd7 {[%clk 0:03:01.8]} 13. h4 {[%clk 0:02:04.4]} 13... Rxf3 {[%clk 0:02:56.3]}
14. gxf3 {[%clk 0:02:02.1]} 14... Nxe5 {[%clk 0:02:58.2]} 15. Qe2 {[%clk
0:02:03.3]} 15... Qf6 {[%clk 0:02:57.6]} 16. O-O-O {[%clk 0:01:52.5]} 16... Rf8
{[%clk 0:02:52.5]} 17. Rh3 {[%clk 0:01:38]} 17... c5 {[%clk 0:02:48.6]} 18. Bb5
{[%clk 0:01:32.1]} 18... Bc6 {[%clk 0:02:10.7]} 19. Kb1 {[%clk 0:01:27.3]} 19...
Nxf3 {[%clk 0:02:03.7]} 20. Rdh1 {[%clk 0:00:58.7]} 20... Nd4 {[%clk 0:02:00.4]}
21. Qg4 {[%clk 0:00:19.7]} 21... Bxb5 {[%clk 0:01:57.9]} 22. h5 {[%clk
0:00:21.2]} 22... Be2 {[%clk 0:01:54.4]} 23. Qg3 {[%clk 0:00:21.1]} 23... Bf3
{[%clk 0:01:51.6]} 24. Rg1 {[%clk 0:00:21.3]} 24... Ne2 {[%clk 0:01:45.7]} 0-1

[Event "*** Titled Tuesday Blitz"]
[Site "Chess.com"]
[Date "2019.12.03"]
[Round "2"]
[White "MarcoRiehle"]
[Black "MFBerna"]
[Result "0-1"]
[WhiteElo "2646"]
[BlackElo "2354"]
[TimeControl "180+2"]
[EndTime "13:19:09 PST"]
[Termination "MFBerna won by resignation"]

1. e4 {[%clk 0:03:01.8]} 1... c5 {[%clk 0:03:01]} 2. Nf3 {[%clk 0:03:02.9]} 2...
d6 {[%clk 0:03:02]} 3. d4 {[%clk 0:03:04.1]} 3... cxd4 {[%clk 0:03:03.9]} 4.
Nxd4 {[%clk 0:03:04.8]} 4... Nf6 {[%clk 0:03:05.4]} 5. f3 {[%clk 0:03:06.3]}
5... e5 {[%clk 0:03:02.9]} 6. Nb3 {[%clk 0:03:06.7]} 6... Be7 {[%clk 0:03:02.7]}
7. c4 {[%clk 0:03:07.7]} 7... Nc6 {[%clk 0:03:02.9]} 8. Nc3 {[%clk 0:03:09.1]}
8... Be6 {[%clk 0:03:02]} 9. Be3 {[%clk 0:03:10.1]} 9... Rc8 {[%clk 0:03:02.7]}
10. Qd2 {[%clk 0:03:10.3]} 10... Na5 {[%clk 0:03:02.6]} 11. Nd5 {[%clk
0:03:07.9]} 11... Nxc4 {[%clk 0:02:50.3]} 12. Bxc4 {[%clk 0:03:08.9]} 12... Rxc4
{[%clk 0:02:52.2]} 13. Bxa7 {[%clk 0:03:02.5]} 13... Bxd5 {[%clk 0:02:22]} 14.
exd5 {[%clk 0:03:04.4]} 14... b6 {[%clk 0:02:23]} 15. Qd3 {[%clk 0:03:03.4]}
15... Ra4 {[%clk 0:02:11.9]} 16. Qb5+ {[%clk 0:03:01.7]} 16... Qd7 {[%clk
0:02:12.9]} 17. Qxb6 {[%clk 0:02:45.3]} 17... Qxa7 {[%clk 0:01:42.5]} 18. Qb5+
{[%clk 0:02:46]} 18... Qd7 {[%clk 0:01:35.7]} 19. Qb8+ {[%clk 0:02:42.2]} 19...
Bd8 {[%clk 0:01:36.8]} 20. O-O {[%clk 0:02:41.2]} 20... O-O {[%clk 0:01:19]} 21.
Kh1 {[%clk 0:02:37.2]} 21... Nxd5 {[%clk 0:01:18.5]} 22. Rfd1 {[%clk 0:02:31.6]}
22... Be7 {[%clk 0:01:12.9]} 23. Qxf8+ {[%clk 0:02:32.3]} 23... Bxf8 {[%clk
0:01:12.2]} 24. Rxd5 {[%clk 0:02:34.2]} 24... Qb7 {[%clk 0:01:06.7]} 25. Rdd1
{[%clk 0:02:23.2]} 25... f5 {[%clk 0:01:03.1]} 26. h3 {[%clk 0:02:23.2]} 26...
g5 {[%clk 0:01:01.6]} 27. Rd3 {[%clk 0:02:19.7]} 27... h5 {[%clk 0:01:00.2]} 28.
a3 {[%clk 0:02:19.6]} 28... d5 {[%clk 0:00:58.8]} 29. Rc1 {[%clk 0:02:17.2]}
29... Rc4 {[%clk 0:00:57.1]} 30. Rcd1 {[%clk 0:02:18.3]} 30... d4 {[%clk
0:00:57.4]} 31. Na5 {[%clk 0:02:19.1]} 31... Qb5 {[%clk 0:00:57]} 32. Nxc4
{[%clk 0:02:19.3]} 32... Qxc4 {[%clk 0:00:58.9]} 33. b4 {[%clk 0:02:17.9]} 33...
Bg7 {[%clk 0:00:58.9]} 34. R3d2 {[%clk 0:02:16.5]} 34... e4 {[%clk 0:00:59.6]}
35. fxe4 {[%clk 0:02:17.7]} 35... fxe4 {[%clk 0:01:00.6]} 36. Re1 {[%clk
0:02:18]} 36... e3 {[%clk 0:01:00.2]} 37. Rdd1 {[%clk 0:02:19.5]} 37... e2
{[%clk 0:01:00.1]} 38. Rc1 {[%clk 0:02:20.8]} 38... Qxc1 {[%clk 0:00:59.3]} 39.
Rxc1 {[%clk 0:02:22.7]} 39... d3 {[%clk 0:01:01.2]} 0-1

[Event "*** Titled Tuesday Blitz"]
[Site "Chess.com"]
[Date "2019.12.03"]
[Round "2"]
[White "Chessmatus"]
[Black "pouya21"]
[Result "0-1"]
[WhiteElo "2387"]
[BlackElo "2711"]
[TimeControl "180+2"]
[EndTime "13:19:22 PST"]
[Termination "pouya21 won by checkmate"]

1. e4 {[%clk 0:03:01.9]} 1... c5 {[%clk 0:03:00.7]} 2. Nf3 {[%clk 0:03:02.8]}
2... d6 {[%clk 0:03:02]} 3. d4 {[%clk 0:03:03.7]} 3... cxd4 {[%clk 0:03:03.9]}
4. Nxd4 {[%clk 0:03:05.1]} 4... Nf6 {[%clk 0:03:05.2]} 5. Nc3 {[%clk 0:03:06.3]}
5... a6 {[%clk 0:03:06.5]} 6. g3 {[%clk 0:03:07.2]} 6... Bd7 {[%clk 0:03:05]} 7.
Bg2 {[%clk 0:03:06.6]} 7... Nc6 {[%clk 0:03:06.6]} 8. Nb3 {[%clk 0:03:07.6]}
8... g6 {[%clk 0:03:05.7]} 9. O-O {[%clk 0:03:06.2]} 9... Bg7 {[%clk 0:03:07]}
10. Nd5 {[%clk 0:02:47.8]} 10... O-O {[%clk 0:03:04.4]} 11. c3 {[%clk
0:02:41.1]} 11... Rc8 {[%clk 0:03:03.2]} 12. h3 {[%clk 0:02:39.7]} 12... Ne5
{[%clk 0:02:56.4]} 13. Nd4 {[%clk 0:02:24.2]} 13... e6 {[%clk 0:02:51]} 14.
Nxf6+ {[%clk 0:02:24.1]} 14... Bxf6 {[%clk 0:02:52.7]} 15. Qe2 {[%clk 0:02:01]}
15... Nc6 {[%clk 0:02:49.6]} 16. Nxc6 {[%clk 0:01:46.5]} 16... Bxc6 {[%clk
0:02:51.5]} 17. Rd1 {[%clk 0:01:47.3]} 17... Qe7 {[%clk 0:02:52.1]} 18. Be3
{[%clk 0:01:40.8]} 18... b5 {[%clk 0:02:50.4]} 19. Qd2 {[%clk 0:01:30.8]} 19...
Rfd8 {[%clk 0:02:49.5]} 20. Bf4 {[%clk 0:01:30.3]} 20... e5 {[%clk 0:02:46]} 21.
Be3 {[%clk 0:01:30.4]} 21... Qb7 {[%clk 0:02:47.2]} 22. Qc2 {[%clk 0:01:23.1]}
22... d5 {[%clk 0:02:47.3]} 23. exd5 {[%clk 0:01:23.9]} 23... Bxd5 {[%clk
0:02:48.2]} 24. Bxd5 {[%clk 0:01:24.7]} 24... Rxd5 {[%clk 0:02:49.3]} 25. Rxd5
{[%clk 0:01:19.3]} 25... Qxd5 {[%clk 0:02:51.2]} 26. Qb3 {[%clk 0:01:06.5]}
26... Qd7 {[%clk 0:02:45.4]} 27. Kh2 {[%clk 0:00:57.1]} 27... h5 {[%clk
0:02:46]} 28. Rd1 {[%clk 0:00:54.7]} 28... Qf5 {[%clk 0:02:45.2]} 29. h4 {[%clk
0:00:48.8]} 29... Rc4 {[%clk 0:02:41.6]} 30. Rd6 {[%clk 0:00:25.9]} 30... Bxh4
{[%clk 0:02:40.2]} 31. Rxa6 {[%clk 0:00:26.2]} 31... Bxg3+ {[%clk 0:02:27.3]}
32. fxg3 {[%clk 0:00:21.4]} 32... h4 {[%clk 0:02:28.8]} 33. Qxb5 {[%clk
0:00:19.9]} 33... hxg3+ {[%clk 0:02:29]} 34. Kg2 {[%clk 0:00:21]} 34... Qe4+
{[%clk 0:02:28.2]} 35. Kf1 {[%clk 0:00:18.5]} 35... Qf3+ {[%clk 0:02:28.4]} 36.
Kg1 {[%clk 0:00:18.4]} 36... Qxe3+ {[%clk 0:02:29.6]} 37. Kg2 {[%clk 0:00:19.4]}
37... Qf2+ {[%clk 0:02:27.4]} 38. Kh3 {[%clk 0:00:20.6]} 38... Qh2# {[%clk
0:02:29.3]} 0-1

[Event "*** Titled Tuesday Blitz"]
[Site "Chess.com"]
[Date "2019.12.03"]
[Round "2"]
[White "xamax2000"]
[Black "vugarrasulov"]
[Result "0-1"]
[WhiteElo "2562"]
[BlackElo "2796"]
[TimeControl "180+2"]
[EndTime "13:19:33 PST"]
[Termination "vugarrasulov won by resignation"]

1. e4 {[%clk 0:03:01.9]} 1... e5 {[%clk 0:03:00.3]} 2. Nf3 {[%clk 0:03:03.1]}
2... Nc6 {[%clk 0:03:01.6]} 3. Bb5 {[%clk 0:03:04.6]} 3... a6 {[%clk 0:03:02.3]}
4. Ba4 {[%clk 0:03:05.8]} 4... Nf6 {[%clk 0:03:03.8]} 5. O-O {[%clk 0:03:07.3]}
5... b5 {[%clk 0:03:04.8]} 6. Bb3 {[%clk 0:03:07.3]} 6... Bc5 {[%clk 0:03:06.4]}
7. a4 {[%clk 0:03:06.9]} 7... Rb8 {[%clk 0:03:06]} 8. c3 {[%clk 0:03:08.3]} 8...
d6 {[%clk 0:03:06.8]} 9. d4 {[%clk 0:03:09.6]} 9... Bb6 {[%clk 0:03:08.3]} 10.
a5 {[%clk 0:03:01.2]} 10... Ba7 {[%clk 0:03:08.9]} 11. Be3 {[%clk 0:03:02.8]}
11... Ra8 {[%clk 0:03:09.6]} 12. h3 {[%clk 0:03:00.1]} 12... O-O {[%clk
0:03:09.6]} 13. Re1 {[%clk 0:02:51.9]} 13... h6 {[%clk 0:03:10.8]} 14. Nbd2
{[%clk 0:02:51]} 14... Re8 {[%clk 0:03:07]} 15. Nf1 {[%clk 0:02:18.4]} 15...
exd4 {[%clk 0:03:01.6]} 16. cxd4 {[%clk 0:02:18.5]} 16... Rxe4 {[%clk
0:03:02.6]} 17. Ng3 {[%clk 0:02:19.1]} 17... Re7 {[%clk 0:03:04.1]} 18. Qd2
{[%clk 0:02:19.4]} 18... Qf8 {[%clk 0:02:55.3]} 19. Nh4 {[%clk 0:02:08.7]} 19...
Ne4 {[%clk 0:02:29.1]} 20. Nxe4 {[%clk 0:02:01.6]} 20... Rxe4 {[%clk 0:02:31]}
21. Ng6 {[%clk 0:01:54]} 21... Qe8 {[%clk 0:02:28.6]} 22. Bd5 {[%clk 0:01:38.5]}
22... Bf5 {[%clk 0:02:21]} 23. Bxh6 {[%clk 0:00:43.9]} 23... Bxg6 {[%clk
0:02:10.5]} 24. Bxe4 {[%clk 0:00:18.1]} 24... Bxe4 {[%clk 0:02:12.4]} 25. Bxg7
{[%clk 0:00:19.4]} 25... Qe6 {[%clk 0:01:49.8]} 26. f3 {[%clk 0:00:19.3]} 26...
d5 {[%clk 0:01:42.4]} 27. Bh6 {[%clk 0:00:17.5]} 27... Nxd4 {[%clk 0:01:40.5]}
28. Kh1 {[%clk 0:00:17.2]} 28... Nxf3 {[%clk 0:01:38.9]} 29. gxf3 {[%clk
0:00:16.5]} 29... Qxh3+ {[%clk 0:01:39.5]} 0-1

[Event "*** Titled Tuesday Blitz"]
[Site "Chess.com"]
[Date "2019.12.03"]
[Round "2"]
[White "Alopekos"]
[Black "rogapa"]
[Result "1-0"]
[WhiteElo "2485"]
[BlackElo "2713"]
[TimeControl "180+2"]
[EndTime "13:19:36 PST"]
[Termination "Alopekos won by resignation"]

1. e4 {[%clk 0:03:01.9]} 1... c5 {[%clk 0:03:00.2]} 2. Nc3 {[%clk 0:03:02.5]}
2... Nc6 {[%clk 0:03:00.7]} 3. Nge2 {[%clk 0:03:03.7]} 3... g6 {[%clk
0:02:59.7]} 4. d4 {[%clk 0:03:04.8]} 4... cxd4 {[%clk 0:03:00.5]} 5. Nxd4 {[%clk
0:03:06.7]} 5... Bg7 {[%clk 0:03:02]} 6. Nxc6 {[%clk 0:03:08.4]} 6... bxc6
{[%clk 0:03:02.5]} 7. Bc4 {[%clk 0:03:10]} 7... e6 {[%clk 0:02:59]} 8. O-O
{[%clk 0:03:10.7]} 8... d5 {[%clk 0:02:58.6]} 9. exd5 {[%clk 0:03:12]} 9... cxd5
{[%clk 0:02:59.4]} 10. Nxd5 {[%clk 0:03:13.1]} 10... exd5 {[%clk 0:02:54.7]} 11.
Bxd5 {[%clk 0:03:13.2]} 11... Be6 {[%clk 0:02:55.3]} 12. Bc6+ {[%clk 0:03:11.3]}
12... Kf8 {[%clk 0:02:44.2]} 13. Bxa8 {[%clk 0:03:11.9]} 13... Qxa8 {[%clk
0:02:45.4]} 14. Qd6+ {[%clk 0:03:12.7]} 14... Ke8 {[%clk 0:02:16.8]} 15. Rd1
{[%clk 0:02:14.8]} 15... Nf6 {[%clk 0:02:07.6]} 16. Be3 {[%clk 0:01:44.3]} 16...
Nd7 {[%clk 0:01:45]} 17. Bg5 {[%clk 0:01:28.9]} 17... Bf8 {[%clk 0:01:38.2]} 18.
Qc7 {[%clk 0:01:08.4]} 18... h6 {[%clk 0:01:19.6]} 19. Rxd7 {[%clk 0:00:57.7]}
19... Bxd7 {[%clk 0:00:47.9]} 20. Rd1 {[%clk 0:00:58]} 1-0

[Event "*** Titled Tuesday Blitz"]
[Site "Chess.com"]
[Date "2019.12.03"]
[Round "2"]
[White "Gentlejimmy7"]
[Black "1random"]
[Result "1-0"]
[WhiteElo "2572"]
[BlackElo "2775"]
[TimeControl "180+2"]
[EndTime "13:19:37 PST"]
[Termination "Gentlejimmy7 won by resignation"]

1. d4 {[%clk 0:03:01.9]} 1... d5 {[%clk 0:03:00.2]} 2. Nf3 {[%clk 0:03:01.6]}
2... Nf6 {[%clk 0:03:01.7]} 3. c4 {[%clk 0:03:01.4]} 3... e6 {[%clk 0:03:03.1]}
4. g3 {[%clk 0:03:02.2]} 4... dxc4 {[%clk 0:03:01.4]} 5. Bg2 {[%clk 0:03:01.2]}
5... c6 {[%clk 0:03:02.8]} 6. O-O {[%clk 0:03:01]} 6... b5 {[%clk 0:03:04]} 7.
b3 {[%clk 0:02:53.2]} 7... cxb3 {[%clk 0:03:03.7]} 8. Qxb3 {[%clk 0:02:55.1]}
8... Bb7 {[%clk 0:03:03.5]} 9. a4 {[%clk 0:02:56]} 9... a6 {[%clk 0:02:59.7]}
10. Rd1 {[%clk 0:02:56.6]} 10... Nbd7 {[%clk 0:03:00.8]} 11. Nbd2 {[%clk
0:02:55]} 11... Be7 {[%clk 0:02:44.1]} 12. Ba3 {[%clk 0:02:54.8]} 12... O-O
{[%clk 0:02:43.8]} 13. Ne5 {[%clk 0:02:53]} 13... Bxa3 {[%clk 0:02:41]} 14. Qxa3
{[%clk 0:02:50.5]} 14... Qb6 {[%clk 0:02:31]} 15. Nb3 {[%clk 0:02:47.5]} 15...
b4 {[%clk 0:02:13.1]} 16. a5 {[%clk 0:02:42.3]} 16... Qb5 {[%clk 0:01:57.6]} 17.
Qb2 {[%clk 0:02:39.4]} 17... Nxe5 {[%clk 0:01:49.5]} 18. dxe5 {[%clk 0:02:39]}
18... Nd5 {[%clk 0:01:49.3]} 19. Nd4 {[%clk 0:02:35.2]} 19... Qc5 {[%clk
0:01:50.4]} 20. Bxd5 {[%clk 0:02:31.9]} 20... cxd5 {[%clk 0:01:48.2]} 21. Rdc1
{[%clk 0:02:30]} 21... Qe7 {[%clk 0:01:48.2]} 22. Rab1 {[%clk 0:02:27]} 22...
Rac8 {[%clk 0:01:16.9]} 23. Rxc8 {[%clk 0:02:28.5]} 23... Rxc8 {[%clk
0:01:18.8]} 24. Qxb4 {[%clk 0:02:27.6]} 24... Qxb4 {[%clk 0:01:20.3]} 25. Rxb4
{[%clk 0:02:29.5]} 25... Rc7 {[%clk 0:01:22.1]} 26. Rb6 {[%clk 0:02:14.6]} 26...
Kf8 {[%clk 0:01:20.8]} 27. f4 {[%clk 0:02:15.2]} 27... Ke7 {[%clk 0:01:21]} 28.
Kf2 {[%clk 0:02:16.5]} 28... g6 {[%clk 0:00:59.8]} 29. g4 {[%clk 0:02:14.9]}
29... Kd7 {[%clk 0:00:56.2]} 30. f5 {[%clk 0:02:07.6]} 30... exf5 {[%clk
0:00:55.2]} 31. gxf5 {[%clk 0:02:09.5]} 31... Kc8 {[%clk 0:00:53.3]} 32. f6
{[%clk 0:02:05.7]} 32... Kd7 {[%clk 0:00:36]} 33. e6+ {[%clk 0:01:53.8]} 33...
fxe6 {[%clk 0:00:37.1]} 34. f7 {[%clk 0:01:54.8]} 34... Rc8 {[%clk 0:00:27]} 35.
Nxe6 {[%clk 0:01:55.9]} 1-0

[Event "*** Titled Tuesday Blitz"]
[Site "Chess.com"]
[Date "2019.12.03"]
[Round "2"]
[White "TigrVShlyape"]
[Black "2nd_life"]
[Result "1-0"]
[WhiteElo "2852"]
[BlackElo "2473"]
[TimeControl "180+2"]
[EndTime "13:19:39 PST"]
[Termination "TigrVShlyape won by resignation"]

1. d4 {[%clk 0:03:01.9]} 1... Nf6 {[%clk 0:03:00.2]} 2. Nf3 {[%clk 0:03:02.4]}
2... g6 {[%clk 0:02:58]} 3. Bf4 {[%clk 0:03:01.5]} 3... Bg7 {[%clk 0:02:57.6]}
4. c3 {[%clk 0:03:02.1]} 4... O-O {[%clk 0:02:56.1]} 5. h3 {[%clk 0:03:01.3]}
5... c5 {[%clk 0:02:46.8]} 6. e3 {[%clk 0:03:01.3]} 6... Qb6 {[%clk 0:02:40.2]}
7. Qb3 {[%clk 0:03:01.6]} 7... d5 {[%clk 0:02:35.5]} 8. Nbd2 {[%clk 0:03:00.7]}
8... Nc6 {[%clk 0:02:33.3]} 9. Be2 {[%clk 0:03:00.8]} 9... c4 {[%clk 0:02:11.6]}
10. Qa3 {[%clk 0:03:01.3]} 10... Qa5 {[%clk 0:01:59]} 11. Qxa5 {[%clk
0:03:01.1]} 11... Nxa5 {[%clk 0:02:00]} 12. b3 {[%clk 0:02:54.8]} 12... b5
{[%clk 0:01:55.7]} 13. b4 {[%clk 0:02:52.8]} 13... Nc6 {[%clk 0:01:42.5]} 14. a4
{[%clk 0:02:53.3]} 14... bxa4 {[%clk 0:01:43.4]} 15. Rxa4 {[%clk 0:02:53.1]}
15... a5 {[%clk 0:01:34.7]} 16. Ne5 {[%clk 0:02:31.2]} 16... Bb7 {[%clk
0:01:26.9]} 17. bxa5 {[%clk 0:02:23.7]} 17... Rxa5 {[%clk 0:00:59]} 18. Rxa5
{[%clk 0:02:23.9]} 18... Nxa5 {[%clk 0:01:00]} 19. O-O {[%clk 0:02:09.9]} 19...
Ra8 {[%clk 0:00:50.9]} 20. Rb1 {[%clk 0:02:09]} 20... Ne8 {[%clk 0:00:51]} 21.
Bf3 {[%clk 0:01:54.6]} 21... Nd6 {[%clk 0:00:41.6]} 22. Nd7 {[%clk 0:01:52.4]}
22... Bc6 {[%clk 0:00:25.1]} 23. Nb6 {[%clk 0:01:52.3]} 23... Rb8 {[%clk
0:00:25]} 24. Nxd5 {[%clk 0:01:40.8]} 24... Rxb1+ {[%clk 0:00:24.2]} 25. Nxb1
{[%clk 0:01:41.8]} 25... Kf8 {[%clk 0:00:20.6]} 26. Bxd6 {[%clk 0:01:34.6]}
26... exd6 {[%clk 0:00:21.3]} 27. Nb6 {[%clk 0:01:35.5]} 27... Bxf3 {[%clk
0:00:20.2]} 28. gxf3 {[%clk 0:01:36.2]} 28... Ke7 {[%clk 0:00:15.4]} 29. Nd2
{[%clk 0:01:37.2]} 1-0